Cogmind - Beta 11.1 @@@ ROGUE MODE // 2022.11.11 @ 17:55:24 Player: Infomantis Result: Destroyed by S-43 Plague with Heavy Machine Gun Performance ------------- Evolutions (9) 4500 Regions Visited (30) 6000 Robots Destroyed (265) 1325 Value Destroyed (13833) 13833 Prototype IDs (45) 900 Alien Tech Used (0) 0 Bonus (23578) 23578 TOTAL SCORE: 50136 Bonus ------- High Alert Combat Kills 3062 Follower Combat Kills 1685 Network Hubs Disabled 200 Met Data Miner 300 Met Imprinter 300 Met Warlord at Base 500 MAIN.C Attacked Warlord 500 Warlord Defense Kills 456 A7 Reached Mainframe 300 Met R17 at Cetus 500 Met R17 at Research 2000 Met Warlord at Research 2000 Destroyed MAIN.C Guards 500 Met MAIN.C 5000 Hacked MAIN.C 300 Destroyed MAIN.C Shell 5000 Met Warlord at Command 2000 Friendly Fire -1025 Cogmind --------- Core Integrity 0/1600 Matter 113/300 Energy 100/100 System Corruption 27% Temperature Cool (0) Movement Core (50) Location -1/Command Parts ------- > --- POWER (2) -------- (None) > --- PROPULSION (7) --- (None) > --- UTILITY (12) ----- Advanced Visual Processing Unit Advanced Target Analyzer Experimental Core Analyzer Graphene Brace > --- WEAPON (4) ------- (None) > --- INVENTORY (5) ---- Light Quantum Reactor Graphene Brace Advanced Recalibrator Nova Cannon Advanced Remote Datajack Peak State ------------ > --- POWER ------------ Micro Antimatter Reactor Quantum Reactor > --- PROPULSION ------- Biometal Heavy Treads Biometal Heavy Treads Biometal Heavy Treads Myomer Leg > --- UTILITY ---------- Advanced Heat Sink Advanced Heat Sink Advanced Heat Sink High-capacity Storage Unit Advanced Visual Processing Unit Advanced Targeting Computer Advanced Target Analyzer Experimental Core Analyzer Graphene Brace Improved Remote Force Field AEGIS Remote Shield Improved Corruption Screen > --- WEAPON ----------- Heavy Disruptor Cannon Nova Cannon Nova Cannon > --- INVENTORY -------- Light Angular Momentum Engine Biometal Heavy Treads Myomer Leg Centrium Leg Wheel Wheel Compact Wheel Seismic Detector Graphene Brace Advanced Recalibrator Nova Cannon Nova Cannon Linear Accelerator Advanced Remote Datajack [Rating: 187] Favorites ----------- Power Quantum Reactor Engine Makeshift Power Source Power Core Reinforced Fission Core Reactor Quantum Reactor Propulsion Centrium Wheel Treads Biometal Heavy Treads Leg Titanium Leg Wheel Centrium Wheel Hover Unit Linear Gravjet Flight Unit Nuclear Pulse Thruster Utility Advanced Targeting Computer Device Advanced Heat Sink Storage Medium Storage Unit Processor Advanced Targeting Computer Hackware Hacking Suite Protection Centrium Medium Armor Plating Weapon Railgun Energy Gun Wave Gun Energy Cannon Nova Cannon Ballistic Gun Railgun Ballistic Cannon Bore Cannon Launcher Mini Grenade Launcher Special Weapon Advanced Remote Datajack Impact Weapon Power Maul Slashing Weapon Great Axe Build | -11 -10 -9 -9 -9 -8 -8 -7 -7 -7 -7 -6 -6 -6 -6 -6 -5 -5 -5 -5 -5 -5 -4 -4 -4 -4 -3 -3 -2 -1 -1 ------- Run | Scr Mat Mat Min Exi Min Mat Fac Low Low Zio Pro Fac Low Low Dat Pro Fac Ext Cet Arc Hub Fac Upp Upp War Pro Res Res Acc Com Slots Evolved 18 | . . 2 . . . 2 2 . . . . 2 . . . . 2 . . . . 2 . . . . 2 2 2 . Power 1 | . . . . . . . . . . . . . . . . . 1 . . . . . . . . . . . . . Propulsion 5 | . . . . . . 1 . . . . . 1 . . . . 1 . . . . 1 . . . . . 1 . . Utility 10 | . . 1 . . . 1 1 . . . . 1 . . . . . . . . . 1 . . . . 2 1 2 . Weapon 2 | . . 1 . . . . 1 . . . . . . . . . . . . . . . . . . . . . . . Parts Attached 417 | 7 12 11 4 . 2 17 15 8 3 16 13 18 1 1 . 5 12 34 9 8 13 23 4 4 21 5 13 10 26 102 Power 30 | 1 1 1 . . . 2 2 1 . . 2 1 . . . . 2 3 . 2 1 2 . . 1 . . . 3 5 Engine 13 | 1 1 1 . . . 2 2 1 . . 2 1 . . . . 2 . . . . . . . . . . . . . Core 6 | . . . . . . . . . . . . . . . . . . 3 . . 1 1 . . . . . . 1 . Reactor 11 | . . . . . . . . . . . . . . . . . . . . 2 . 1 . . 1 . . . 2 5 Propulsion 96 | 2 7 2 1 . 2 4 3 2 2 . 1 5 . 1 . 1 4 6 4 1 6 8 . 2 1 . 3 2 1 25 Treads 24 | . . 2 1 . . 1 . . 1 . 1 1 . . . 1 . 3 . 1 . 1 . . . . 1 2 1 7 Leg 46 | 2 7 . . . 2 3 3 2 1 . . 4 . 1 . . . . 4 . 6 2 . . . . 1 . . 8 Wheel 22 | . . . . . . . . . . . . . . . . . . 3 . . . 5 . 2 1 . 1 . . 10 Hover 2 | . . . . . . . . . . . . . . . . . 2 . . . . . . . . . . . . . Flight 2 | . . . . . . . . . . . . . . . . . 2 . . . . . . . . . . . . . Utility 172 | 2 1 3 1 . . 6 6 2 1 9 8 8 1 . . 2 4 14 1 4 4 8 2 2 14 2 7 5 14 41 Device 111 | 1 1 1 1 . . 3 4 1 1 5 3 7 1 . . 2 3 7 . 4 3 5 2 2 11 2 5 1 8 27 Storage 5 | 1 . 1 . . . . . . . . . . . . . . . 1 . . . . . . . . . 1 1 . Processor 13 | . . . . . . 1 1 . . . . 1 . . . . 1 1 . . . . . . 1 . 1 1 1 4 Hackware 7 | . . . . . . . . . . . . . . . . . . . . . . 2 . . . . 1 . 2 2 Protection 36 | . . 1 . . . 2 1 1 . 4 5 . . . . . . 5 1 . 1 1 . . 2 . . 2 2 8 Artifact . | . . . . . . . . . . . . . . . . . . . . . . . . . . . . . . . Weapon 119 | 2 3 5 2 . . 5 4 3 . 7 2 4 . . . 2 2 11 4 1 2 5 2 . 5 3 3 3 8 31 Energy Gun 27 | . 2 1 . . . 1 1 . . . . . . . . . 1 6 3 1 2 . . . . . . . 1 8 Energy Cannon 8 | . . . . . . . . . . . . . . . . . . 1 . . . . . . . . . . 1 6 Ballistic Gun 49 | 2 . 1 1 . . 2 1 2 . 3 2 1 . . . . . 2 1 . . 5 2 . 4 2 2 3 4 9 Ballistic Cannon 20 | . 1 2 . . . . 1 1 . 4 . 3 . . . 1 . 1 . . . . . . 1 . . . 1 4 Launcher 7 | . . . 1 . . 1 . . . . . . . . . 1 . . . . . . . . . 1 . . 1 2 Special Weapon 3 | . . . . . . . . . . . . . . . . . . . . . . . . . . . 1 . . 2 Impact Weapon 2 | . . . . . . 1 1 . . . . . . . . . . . . . . . . . . . . . . . Slashing Weapon 3 | . . 1 . . . . . . . . . . . . . . 1 1 . . . . . . . . . . . . Piercing Weapon . | . . . . . . . . . . . . . . . . . . . . . . . . . . . . . . . Special Melee Weapon . | . . . . . . . . . . . . . . . . . . . . . . . . . . . . . . . Unidentified Prototypes 19 | . . . . . . 1 . . . 2 1 . . . . . . 1 3 . . . . . 6 1 1 1 1 1 Corrupted Parts 1 | . . . . . . . . . . . . . . . . . . . . 1 . . . . . . . . . . System Corruption 4 | . . . . . . . . . . . . . . . . . . . . 4 . . . . . . . . . . Parts Lost 123 | . 4 1 2 . 1 . . 3 . . 2 4 . 1 . 13 1 2 . . . 8 1 . . 1 1 . 14 64 Power 10 | . 1 . . . . . . . . . . . . . . . 1 . . . . 1 . . . . . . 1 6 Propulsion 37 | . . . 1 . 1 . . 2 . . 1 1 . 1 . 5 . 1 . . . 3 . . . . . . . 21 Utility 42 | . 1 . 1 . . . . 1 . . . 1 . . . 3 . . . . . 2 . . . 1 . . 9 23 Weapon 34 | . 2 1 . . . . . . . . 1 2 . . . 5 . 1 . . . 2 1 . . . 1 . 4 14 Highest Loss Streak 18 | . 1 1 2 . 1 . . 3 . . 1 3 . 1 . 10 1 1 . . . 7 1 . . 1 1 . 8 18 To Critical Strikes 1 | . . . . . . . . . . . . . . . . 1 . . . . . . . . . . . . . . Average Slot Usage (%) 94 | . 97 97 98 100 100 98 99 99 100 96 99 96 100 100 100 92 49 96 98 99 99 91 99 100 97 92 90 89 85 85 Engine 4 | . 13 11 11 11 11 9 7 7 7 7 7 6 6 6 6 5 3 2 . . . . . . . . . . . . Core 1 | . . . . . . . . . . . . . . . . . . 6 11 5 2 4 5 5 2 . . . 1 2 Reactor 2 | . . . . . . . . . . . . . . . . . . . . 4 8 5 5 5 5 5 4 4 4 4 Treads 4 | . . 22 22 22 8 2 . . . . 2 1 . . . 4 . 9 8 5 4 2 5 5 . . 3 7 8 6 Leg 12 | . 28 . . . 13 24 23 22 23 23 20 22 26 26 26 19 . . 12 23 24 13 . . . . . . . 7 Wheel 6 | . . . . . . . . . . . . . . . . . . 12 5 . . 11 26 26 30 31 19 16 12 5 Device 16 | . 13 11 13 22 22 12 14 15 15 15 15 13 20 20 20 19 12 13 11 10 11 8 21 21 20 13 20 17 18 20 Storage 6 | . 14 11 11 11 11 9 7 7 7 7 7 6 6 6 6 5 . 4 5 5 5 5 5 5 5 5 4 4 4 3 Processor 8 | . . . . . . 5 7 7 7 7 7 12 13 13 13 13 15 11 11 11 11 9 5 5 7 10 9 8 12 14 Hackware 1 | . . . . . . . . . . . . . . . . . . . . . . 8 . . . . 2 4 6 2 Protection 4 | . . 10 7 . . 8 6 6 7 6 7 4 . . . . . 2 5 5 4 2 5 5 3 5 4 7 4 2 Energy Gun 4 | . 5 11 6 . . 6 7 4 . . . . . . . . 3 12 23 22 22 9 2 . . . . . 1 3 Ballistic Gun 11 | . 19 4 15 22 22 10 11 17 23 15 14 12 13 13 13 4 . . . . . 7 17 21 20 20 18 17 10 5 Ballistic Cannon 4 | . 1 12 7 . . . 3 5 7 11 15 12 13 13 13 18 . 2 . . . . . . . . . . 1 1 Naked Turns . | . . . . . . . . . . . . . . . . . . . . . . . . . . . . . . . Heaviest Build 169 | 13 15 34 34 27 27 37 44 45 40 50 55 56 48 48 48 53 20 71 68 79 79 87 98 88 94 93 101 112 169 147 Greatest Support 150 | 20 20 40 40 40 40 55 57 57 51 51 51 68 66 66 61 61 22 48 65 65 80 90 80 80 96 96 96 64 120 150 Greatest Overweight (x) 7 | . . . . . . . . . 2 2 1 1 . . . 1 . 2 2 1 1 4 1 1 1 . 1 2 3 7 Average Overweight (x) . | . . . . . . . . . . . . . . . . . . . 1 1 . . 1 1 . . 1 1 2 1 Largest Inventory Capacity 20 | 8 8 10 10 10 10 10 10 10 10 10 10 10 10 10 10 10 5 10 10 10 10 10 10 10 10 10 10 15 20 20 Average Capacity 11 | 7 8 8 10 10 10 10 10 10 10 10 10 10 10 10 10 9 5 9 10 10 10 10 10 10 10 10 10 14 18 19 Most Carried 20 | 7 8 10 10 10 10 10 10 10 10 10 10 10 10 10 10 10 5 10 10 10 10 10 10 10 10 10 10 15 20 20 Average Carried 11 | 4 7 8 9 10 9 9 9 9 9 9 9 9 10 9 10 9 4 9 9 9 10 9 9 9 9 9 9 13 16 17 Final Capacity 20 | 8 8 10 10 10 10 10 10 10 10 10 10 10 10 10 10 5 5 10 10 10 10 10 10 10 10 10 10 15 20 5 Final Carried 20 | 7 8 10 10 10 10 10 10 10 10 10 10 10 10 10 10 5 4 10 10 10 10 10 10 10 10 10 10 15 20 5 Class Distribution -------------------- 35% | Scavenger-Gunner 18% | Scavenger-Mutant 15% | Gunner 8% | Derelict-Gunner 7% | Mutant 3% | Hacker-Gunner 3% | Scavenger-Tank 3% | Scavenger-Skirmisher Dominant Class ---------------- Mutant | -10/Materials Mutant | -9/Materials Tank | -9/Mines Scavenger-Mutant | -9/Exiles Scavenger-Mutant | -8/Mines Scavenger-Mutant | -8/Materials Scavenger-Gunner | -7/Factory Gunner | -7/Lower Caves Gunner | -7/Lower Caves Derelict-Gunner | -7/Zion Derelict-Gunner | -6/Proximity Caves Gunner | -6/Factory Scavenger-Gunner | -6/Lower Caves Scavenger-Mutant | -6/Lower Caves Scavenger-Mutant | -6/Data Miner Scavenger-Gunner | -5/Proximity Caves Mutant | -5/Factory Scavenger-Gunner | -5/Extension Scavenger-Gunner | -5/Cetus Scavenger-Gunner | -5/Archives Scavenger-Gunner | -5/Hub_04(d) Scavenger-Gunner | -4/Factory Scavenger-Gunner | -4/Upper Caves Scavenger-Gunner | -4/Upper Caves Scavenger-Skirmisher | -4/Warlord Gunner | -3/Proximity Caves Hacker-Gunner | -3/Research Scavenger-Tank | -2/Research Scavenger-Gunner | -1/Access Scavenger-Gunner | -1/Command Resources | -11 -10 -9 -9 -9 -8 -8 -7 -7 -7 -7 -6 -6 -6 -6 -6 -5 -5 -5 -5 -5 -5 -4 -4 -4 -4 -3 -3 -2 -1 -1 ----------- Run | Scr Mat Mat Min Exi Min Mat Fac Low Low Zio Pro Fac Low Low Dat Pro Fac Ext Cet Arc Hub Fac Upp Upp War Pro Res Res Acc Com Matter Collected 10545 | 250 245 177 252 . 45 216 309 363 122 228 548 492 152 201 . 339 . 524 157 182 80 224 479 18 692 535 329 108 1109 2169 Remotely . | . . . . . . . . . . . . . . . . . . . . . . . . . . . . . . . Salvage Created 14896 | 55 428 230 126 . 18 379 294 539 182 . 250 241 132 158 . 330 . 1176 399 545 650 383 304 . 182 681 280 228 1809 4897 Parts 572 | 9 26 10 9 . 3 14 9 25 5 . 9 10 1 8 . 5 . 37 15 20 24 14 18 . 11 17 17 5 65 186 Haulers Intercepted 2 | . . . . . . . . . . . 1 . . . . . . . . . . . . . . . . . 1 . Recyclers Shooed 5 | 1 . . . . . . . . . . . . . . . . . 1 . . . . . . . . 1 . 1 1 Parts Field Recycled . | . . . . . . . . . . . . . . . . . . . . . . . . . . . . . . . Retrieved Matter . | . . . . . . . . . . . . . . . . . . . . . . . . . . . . . . . Parts Self-Destructed 83 | . . . . . . . . 24 4 . 8 . . 6 . 9 . . . . . . 17 . . 15 . . . . Prevented . | . . . . . . . . . . . . . . . . . . . . . . . . . . . . . . . Kills | -11 -10 -9 -9 -9 -8 -8 -7 -7 -7 -7 -6 -6 -6 -6 -6 -5 -5 -5 -5 -5 -5 -4 -4 -4 -4 -3 -3 -2 -1 -1 ------- Run | Scr Mat Mat Min Exi Min Mat Fac Low Low Zio Pro Fac Low Low Dat Pro Fac Ext Cet Arc Hub Fac Upp Upp War Pro Res Res Acc Com Combat Hostiles Destroyed 225 | . 12 6 12 . 3 8 4 13 4 . 7 5 . 7 . 3 . 11 4 3 10 5 6 . 4 10 4 1 23 60 Guns 160 | . 12 1 10 . . 2 3 12 4 . 3 3 . 7 . . . 8 4 3 10 5 6 . 4 9 4 1 13 36 Cannons 39 | . . 5 . . . . 1 1 . . 4 2 . . . 3 . 2 . . . . . . . . . . 4 17 AOE 24 | . . . 2 . 3 6 . . . . . . . . . . . . . . . . . . . 1 . . 6 6 Classes Destroyed 17 | 1 2 3 1 . . 3 1 1 . . 2 . . . . . . . . 1 . . . . . . . . 1 1 Worker 10 | . . . . . . . 3 . . . . . . . . . . . . . . . . . . . 1 . 1 5 Tunneler 3 | 3 . . . . . . . . . . . . . . . . . . . . . . . . . . . . . . Hauler 2 | . . . . . . . . . . . 1 . . . . . . . . . . . . . . . . . 1 . Recycler 17 | . . . . . . 1 . . . . . 1 . . . . . 3 . . . . . . . . 1 1 2 8 Operator 5 | . . . . . . . . . . . . . . . . . . . . 4 . . . . . . . . . 1 Watcher 6 | . . 1 . . . . 1 . . . . . . . . . . 2 . . . . . . . . . . 1 1 Swarmer 41 | . 3 . 4 . 3 . . . . . 2 . . 6 . . . 1 . . . . 3 . 1 5 4 . 3 6 Grunt 85 | . 9 4 . . . 5 1 10 3 . 2 1 . . . . . 4 1 . 6 3 2 . 3 2 . . 9 20 Brawler 2 | . . 1 . . . . . . . . . . . . . . . . . . . 1 . . . . . . . . Duelist 6 | . . . . . . 1 . 2 . . . . . . . . . . . . . . 1 . . . . . . 2 Protector 2 | . . . . . . . . . . . . . . . . . . . . . . . . . . . . . . 2 Sentry 27 | . . 1 . . . 1 3 . 1 . 1 1 . 1 . . . 5 . 3 3 . . . . 1 . 1 1 4 Hunter 17 | . . . . . . 1 . . . . 1 2 . . . 2 . . . . . . . . . 2 . . 4 5 Programmer 28 | . . . . . . . . . . . 1 1 . . . 1 . . . . 1 . . . . . . . 5 19 Behemoth 4 | . . . . . . . . 1 . . . . . . . . . 1 . . . 1 . . . . . . 1 . Cetus Guard 3 | . . . . . . . . . . . . . . . . . . . 3 . . . . . . . . . . . M Guard 1 | . . . . . . . . . . . . . . . . . . . . . . . . . . . . . . 1 Combat Programmer 1 | . . . . . . . . . . . . . . . . . . . . . . . . . . . . . . 1 Assembled 8 | . . . 8 . . . . . . . . . . . . . . . . . . . . . . . . . . . Thug 1 | . . . . . . . . . . . . . . . . . . . . 1 . . . . . . . . . . Savage 2 | . . . . . . . . . . . . . . . . . . . 1 1 . . . . . . . . . . Butcher 1 | . . . . . . . . . . . . . . . . . . . 1 . . . . . . . . . . . Martyr 1 | . . . . . . . . . . . . . . . . . . . . . . . . . . . . . 1 . Best Kill Streak 14 | 1 5 4 6 . 3 6 2 4 4 . 3 3 . 3 . 2 . 2 2 2 4 3 3 . 3 4 6 1 14 9 Combat Bots Only 12 | . 5 3 6 . 3 6 1 4 4 . 3 2 . 3 . 2 . 2 2 2 4 3 3 . 3 4 4 1 12 9 Max Kills in Single Turn 8 | 1 1 2 1 . 2 4 1 1 1 . 1 2 . 1 . 1 . 1 1 2 1 1 1 . 1 1 2 1 8 5 Gunslinging 1 | . . . . . . . . . . . . . . . . . . . . . . . . . . . 1 . 1 1 Exploded 6 | . . . 1 . 2 4 . . . . . . . . . . . . . . . . . . . 1 . . 6 5 Melee . | . . . . . . . . . . . . . . . . . . . . . . . . . . . . . . . Uniques/NPCs Destroyed . | . . . . . . . . . . . . . . . . . . . . . . . . . . . . . . . Combat | -11 -10 -9 -9 -9 -8 -8 -7 -7 -7 -7 -6 -6 -6 -6 -6 -5 -5 -5 -5 -5 -5 -4 -4 -4 -4 -3 -3 -2 -1 -1 -------- Run | Scr Mat Mat Min Exi Min Mat Fac Low Low Zio Pro Fac Low Low Dat Pro Fac Ext Cet Arc Hub Fac Upp Upp War Pro Res Res Acc Com Damage Taken 28841 | . 708 419 451 . 33 250 301 872 118 . 894 794 144 332 . 1676 79 972 203 376 442 1098 578 . 435 812 184 245 4074 12351 Core 3168 | . 107 44 48 . . . 53 131 26 . 49 29 . 40 . 587 . 79 . 22 38 97 13 . 61 88 36 . 255 1365 Absorbed by Shields 5254 | . . . . . . . . . . . . . . . . . . 219 116 . . . 254 . 458 192 177 257 1166 2415 Reduced by Siege Mode 115 | . . . . . . . . . . . . . . . . . . . . . . . . . . . . . 115 . Redirected to Shielding 240 | . . . . . . . . . . . . . . . . . . . . . . . . . . . . . 107 133 Regen/Repaired (Parts) 147 | . . . . . . . 147 . . . . . . . . . . . . . . . . . . . . . . . Core Remaining (%) 77 | 100 57 . . . 77 100 . . . . 63 . . . . 22 . . . . 86 . . . . 77 97 100 . . Volleys Fired 694 | 13 56 17 24 . 3 10 11 24 8 1 29 18 3 11 . 27 . 45 11 17 23 22 15 . 24 25 11 3 51 192 Largest 4 | 2 2 3 3 . 1 3 3 4 4 1 4 4 2 4 . 4 . 4 4 4 4 4 4 . 4 4 4 4 4 4 Hottest 480 | 40 60 114 102 . 30 118 147 175 123 48 172 172 106 162 . 191 . 296 322 335 480 240 185 . 140 143 143 143 184 309 Shots Fired 1983 | 26 103 42 56 1 2 19 33 88 32 1 110 49 6 26 . 49 . 125 43 67 66 62 59 . 96 97 38 12 156 519 Gun 1576 | 26 103 18 41 1 . 16 25 72 24 . 52 21 . 22 . 5 . 101 43 67 66 62 59 . 96 94 36 12 140 374 Cannon 386 | . . 24 11 . . . 8 16 8 1 58 28 6 4 . 43 . 24 . . . . . . . . . . 15 140 Launcher 17 | . . . 4 . 2 3 . . . . . . . . . 1 . . . . . . . . . 3 . . 1 3 Special 4 | . . . . . . . . . . . . . . . . . . . . . . . . . . . 2 . . 2 Kinetic 1320 | 26 94 24 46 1 . 10 22 64 32 1 110 49 6 26 . 48 . 15 . . . 34 54 . 96 94 36 12 152 268 Thermal 636 | . 8 18 6 . . 6 11 24 . . . . . . . . . 110 43 67 66 28 5 . . . . . 3 241 Explosive 10 | . . . 4 . 2 3 . . . . . . . . . 1 . . . . . . . . . . . . . . Electromagnetic 6 | . 1 . . . . . . . . . . . . . . . . . . . . . . . . . . . . 5 Entropic 7 | . . . . . . . . . . . . . . . . . . . . . . . . . . 3 . . 1 3 Robot Hit Streak 41 | 2 11 8 6 . 7 8 9 14 15 . 10 20 4 6 . 8 . 12 12 9 17 19 7 . 13 17 12 6 31 41 Robot Miss Streak 8 | 4 3 3 3 . . 1 4 4 6 . 8 6 . 4 . 3 . 5 3 2 1 3 3 . 4 6 3 1 4 5 Penetration Max 2 | . . . . . . . 1 . . . . . . . . . . . . . . . . . 2 1 1 . 1 1 Secondary Targets 28 | . 1 . 1 . . . . . . . . . . . . . . . 2 1 . 1 1 . 3 2 2 . 5 9 Max Gunslinging Chain 2 | . 1 . 1 . . . . . . . . . . . . . . . 1 1 . 1 1 . 1 1 2 . 2 1 Shots Hit Robots 1330 | 10 71 25 32 . 1 16 28 72 24 . 73 33 3 21 . 36 . 89 28 40 47 42 30 . 65 43 19 11 123 348 Core Hits 718 | 5 26 8 17 . 3 17 19 52 21 . 50 37 2 31 . 18 . 35 16 23 23 16 12 . 21 25 9 6 60 166 Critical Kills 14 | . 1 . . . . . . . . . 3 1 . . . 2 . . . . . . . . . . 1 . . 6 Critical Parts Destroyed 26 | . . . . . . . 1 . . . 12 . . . . 5 . . . . . 3 2 . . . . . . 3 Critical Strikes 61 | . 1 3 . . . . 2 . . . 16 2 1 . . 9 . 3 1 . 1 4 2 . . . 1 . 1 14 Burn 6 | . . . . . . . . . . . . . . . . . . 3 1 . 1 . . . . . . . . 1 Meltdown 1 | . . . . . . . . . . . . . . . . . . . . . . . . . . . . . . 1 Destroy 44 | . 1 . . . . . . . . . 16 1 . . . 9 . . . . . 4 2 . . . 1 . 1 9 Blast 9 | . . 3 . . . . 1 . . . . 1 1 . . . . . . . . . . . . . . . . 3 Smash 1 | . . . . . . . 1 . . . . . . . . . . . . . . . . . . . . . . . Melee Attacks 16 | . . 2 . . . . 5 . . . . . . . . . . 9 . . . . . . . . . . . . Impact 5 | . . . . . . . 5 . . . . . . . . . . . . . . . . . . . . . . . Slashing 11 | . . 2 . . . . . . . . . . . . . . . 9 . . . . . . . . . . . . Piercing . | . . . . . . . . . . . . . . . . . . . . . . . . . . . . . . . Sneak Attacks 7 | . . . . . . . 3 . . . . . . . . . . 4 . . . . . . . . . . . . Combat Hostiles . | . . . . . . . . . . . . . . . . . . . . . . . . . . . . . . . Follow-up Attacks . | . . . . . . . . . . . . . . . . . . . . . . . . . . . . . . . Damage Inflicted 38999 | 90 583 427 629 . 209 609 822 1399 413 . 1488 733 100 315 . 686 . 2715 928 1108 1314 1168 811 . 1583 1589 575 288 5938 12479 Guns 26025 | 90 583 121 335 . . 183 378 1191 351 . 848 334 . 290 . 57 . 1927 928 1108 1314 1168 811 . 1583 1071 565 288 3095 7406 Cannons 7669 | . . 306 60 . . . 147 208 62 . 640 276 100 25 . 618 . 413 . . . . . . . . . . 1237 3577 Explosions 4543 | . . . 234 . 209 415 . . . . . 113 . . . 6 . . . . . . . . . 518 . . 1570 1478 Melee 672 | . . . . . . . 297 . . . . . . . . . . 375 . . . . . . . . . . . . Ramming 90 | . . . . . . 11 . . . . . 10 . . . 5 . . . . . . . . . . 10 . 36 18 Kinetic 19966 | 90 514 306 372 . . 103 317 896 413 . 1488 610 100 315 . 675 . 198 . . . 585 767 . 1583 1071 565 288 4248 4462 Thermal 13687 | . 56 121 23 . . 80 208 503 . . . . . . . . . 2142 928 1108 1314 583 44 . . . . . 84 6493 Explosive 977 | . . . 234 . 209 415 . . . . . 113 . . . 6 . . . . . . . . . . . . . . Electromagnetic 41 | . 13 . . . . . . . . . . . . . . . . . . . . . . . . . . . . 28 Impact 297 | . . . . . . . 297 . . . . . . . . . . . . . . . . . . . . . . . Slashing 375 | . . . . . . . . . . . . . . . . . . 375 . . . . . . . . . . . . Piercing . | . . . . . . . . . . . . . . . . . . . . . . . . . . . . . . . Entropic 3566 | . . . . . . . . . . . . . . . . . . . . . . . . . . 518 . . 1570 1478 Highest Corruption 26 | . . 5 5 5 5 . 2 2 2 2 . 1 . . . 3 2 8 8 12 . 2 2 2 2 . . . 7 26 Average Corruption 4 | . . 5 5 5 5 . 2 2 2 2 . 1 . . . 2 1 2 8 8 . 2 2 2 2 . . . 3 8 Corruption Purged 18 | . . . . . . . . . . . . 1 . . . . . . . 12 . . . . . . . . . 5 Corruption Blocked 54 | . . . . . . . . . . . . . . . . . . . . . . . . . . . . 7 . 47 Effects 281 | . . 7 22 10 19 . 7 10 4 1 . 1 . . . 5 . 18 11 22 . . 6 5 1 . . . 14 118 Message Errors 68 | . . 2 5 1 5 . 2 2 1 . . . . . . 2 . 3 2 5 . . 3 2 . . . . 1 32 Matter Fused 58 | . . 1 6 1 5 . 3 1 1 . . . . . . 2 . 2 5 4 . . 1 . . . . . . 26 Heat Flow Errors 43 | . . . 2 4 3 . . 2 . . . . . . . . . 6 1 1 . . 2 1 . . . . 4 17 Energy Discharges 34 | . . 1 4 3 . . . 2 1 1 . 1 . . . 1 . 1 . 3 . . . . 1 . . . 5 10 Parts Rejected 5 | . . . . . . . 1 1 . . . . . . . . . . . . . . . . . . . . . 3 Data Loss (minor) 32 | . . 1 3 . 3 . 1 1 1 . . . . . . . . 3 1 3 . . . 1 . . . . 1 13 Data Loss (major) 9 | . . 1 . . 2 . . . . . . . . . . . . 1 . 1 . . . . . . . . 1 3 Misfires 13 | . . 1 2 1 . . . 1 . . . . . . . . . 1 . 3 . . . . . . . . 1 3 Alerts 5 | . . . . . . . . . . . . . . . . . . . 1 1 . . . 1 . . . . 1 1 Misdirections 1 | . . . . . . . . . . . . . . . . . . . . . . . . . . . . . . 1 Weapon Failures 13 | . . . . . 1 . . . . . . . . . . . . 1 1 1 . . . . . . . . . 9 Overload Shots 6 | . . . . . . . . . . . . . . . . . . . . . 3 3 . . . . . . . . Effects 1 | . . . . . . . . . . . . . . . . . . . . . . 1 . . . . . . . . Heat Surge 1 | . . . . . . . . . . . . . . . . . . . . . . 1 . . . . . . . . Overflow Damage 579 | . . . 15 . 8 . 163 . . . 18 . 8 . . 5 . 69 . . . . . . . 32 . . 140 121 Projectiles 260 | . . . . . . . . . . . 18 . 8 . . 3 . 6 . . . . . . . . . . 140 85 Explosions 93 | . . . 15 . 8 . . . . . . . . . . 2 . . . . . . . . . 32 . . . 36 Melee 226 | . . . . . . . 163 . . . . . . . . . . 63 . . . . . . . . . . . . Knockbacks 34 | . . 3 2 . . . 1 2 . . 9 3 . . . 8 . . . . . . . . . . . . 3 3 Impact 1 | . . . . . . . . . . . . . . . . . . . . . . . . . . . . . 1 . Kinetic 32 | . . 3 2 . . . 1 2 . . 9 3 . . . 7 . . . . . . . . . . . . 2 3 Secondary 1 | . . . . . . . . . . . . . . . . 1 . . . . . . . . . . . . . . Self-Inflicted Damage 383 | . . . 89 . . 63 . . . . . . . . . 43 . . . . . . . . . . 5 . . 183 Shots 6 | . . . 2 . . 2 . . . . . . . . . 1 . . . . . . . . . . . . . 1 Rammed 7 | . . . . . . . . . . . . . . . . . . . . . . . . . . . 1 . 3 3 Targets Rammed 13 | . . . . . . 2 . . . . . 1 . . . 3 . . . . . . . . . . 1 . 3 3 Kicked 6 | . . . . . . 2 . . . . . 1 . . . 3 . . . . . . . . . . . . . . Crushed . | . . . . . . . . . . . . . . . . . . . . . . . . . . . . . . . Highest Temperature 473 | . 64 282 112 192 223 24 84 213 2 . 139 33 . 15 . 36 . 360 183 473 325 294 86 112 . 42 . . 190 282 Average Temperature 84 | . 20 131 27 95 84 10 33 36 2 . 46 16 . 12 . 18 . 104 79 161 142 112 30 74 . 19 . . 47 70 Received Heat Transfer 3381 | . 372 201 . . . 36 84 330 63 . 204 111 12 54 . 219 . 135 42 63 189 178 127 . 93 30 4 8 106 720 Effects 13 | . . 2 . . . . . . . . . . . . . . . 1 . 7 3 . . . . . . . . . Shutdowns 1 | . . . . . . . . . . . . . . . . . . . . 1 . . . . . . . . . . Energy Bleed 5 | . . 2 . . . . . . . . . . . . . . . 1 . 1 1 . . . . . . . . . Interference 6 | . . . . . . . . . . . . . . . . . . . . 4 2 . . . . . . . . . Matter Decay 1 | . . . . . . . . . . . . . . . . . . . . 1 . . . . . . . . . . Siege Activations 1 | . . . . . . . . . . . . . . . . . . . . . . . . . . . . . 1 . Total Turns 24 | . . . . . . . . . . . . . . . . . . . . . . . . . . . . . 24 . Longest Duration 24 | . . . . . . . . . . . . . . . . . . . . . . . . . . . . . 24 . Robots Corrupted . | . . . . . . . . . . . . . . . . . . . . . . . . . . . . . . . Combat Hostiles . | . . . . . . . . . . . . . . . . . . . . . . . . . . . . . . . Parts Fried 3 | . . . . . . . 1 . . . . . . . . . . 2 . . . . . . . . . . . . Impact Corruptions 4 | . . . . . . . 4 . . . . . . . . . . . . . . . . . . . . . . . Robots Melted 2 | . . . . . . . . . . . . . . . . . . 1 . . . . . . . . . . . 1 Combat Hostiles 2 | . . . . . . . . . . . . . . . . . . 1 . . . . . . . . . . . 1 Parts Melted 32 | . . . . . . . . 1 . . . . . . . . . 8 . 6 5 3 . . . . . . . 9 Heat Transferred 18153 | . 125 275 50 . . 185 475 1125 . . . . . . . . . 3256 1389 1554 1813 777 74 . . . . . 111 6944 Parts Sabotaged 2 | . . . . . . . . . . . . . . . . . . . . . . . . . . . . . . 2 Parts Stolen . | . . . . . . . . . . . . . . . . . . . . . . . . . . . . . . . Parts Stripped . | . . . . . . . . . . . . . . . . . . . . . . . . . . . . . . . Power Chain Reactions . | . . . . . . . . . . . . . . . . . . . . . . . . . . . . . . . Missiles Intercepted 7 | . . . . . . . . . . . . . . . . . . . . . . . . . . . . . . 7 Alert | -11 -10 -9 -9 -9 -8 -8 -7 -7 -7 -7 -6 -6 -6 -6 -6 -5 -5 -5 -5 -5 -5 -4 -4 -4 -4 -3 -3 -2 -1 -1 ------- Run | Scr Mat Mat Min Exi Min Mat Fac Low Low Zio Pro Fac Low Low Dat Pro Fac Ext Cet Arc Hub Fac Upp Upp War Pro Res Res Acc Com Peak Influence 1508 | 15 330 305 189 . 86 315 189 . . . . 212 . . . . 61 556 766 422 388 229 . . . . 233 48 759 1508 Initial 389 | . 9 95 40 . . . 51 . . . . . . . . . . 29 311 306 79 189 . . . . 67 . 2 389 Average 366 | 5 171 195 100 . 15 175 60 . . . . 67 . . . . 17 155 584 325 211 92 . . . . 92 37 365 1080 Maximum Alert Level 4 | . 1 1 . . . 1 . . . . . 1 . . . . . 2 3 2 1 1 . . . . 1 . 3 4 Low Security (%) 54 | 100 53 49 100 . 100 45 100 . . . . 88 . . . . 100 75 . . 41 91 . . . . 91 100 52 . Level 1 15 | . 46 50 . . . 54 . . . . . 11 . . . . . 8 31 67 58 8 . . . . 8 . 6 1 Level 2 8 | . . . . . . . . . . . . . . . . . . 15 37 32 . . . . . . . . 23 12 Level 3 8 | . . . . . . . . . . . . . . . . . . . 31 . . . . . . . . . 17 26 Level 4 13 | . . . . . . . . . . . . . . . . . . . . . . . . . . . . . . 58 Level 5 . | . . . . . . . . . . . . . . . . . . . . . . . . . . . . . . . High Security . | . . . . . . . . . . . . . . . . . . . . . . . . . . . . . . . Max Security . | . . . . . . . . . . . . . . . . . . . . . . . . . . . . . . . Squads Dispatched 59 | . 3 4 . . . 1 3 . 1 . . 5 . . . 1 2 1 . . 5 1 . . . . 5 2 2 23 Investigation 19 | . 3 2 . . . . 1 . . . . 1 . . . . 2 1 . . 4 . . . . . 1 . . 4 Extermination 14 | . . . . . . . 1 . . . . 2 . . . . . . . . 1 . . . . . . . 1 9 Reinforcement 14 | . . 2 . . . 1 1 . . . . . . . . . . . . . . 1 . . . . 4 2 1 2 Assault 10 | . . . . . . . . . 1 . . . . . . 1 . . . . . . . . . . . . . 8 Garrison 2 | . . . . . . . . . . . . 2 . . . . . . . . . . . . . . . . . . Intercept . | . . . . . . . . . . . . . . . . . . . . . . . . . . . . . . . Searches Triggered . | . . . . . . . . . . . . . . . . . . . . . . . . . . . . . . . Data Miner Redirects 10 | . . . . . . . . . . . . . . . . . . . . . 2 . . . . . . . . 8 Construction Impeded . | . . . . . . . . . . . . . . . . . . . . . . . . . . . . . . . Haulers Reinforced 2 | . . . . . . . . . . . . . . . . . . . . . . . . . . . 1 1 . . Active Scanning Responses . | . . . . . . . . . . . . . . . . . . . . . . . . . . . . . . . Cargo Convoy Interrupts . | . . . . . . . . . . . . . . . . . . . . . . . . . . . . . . . Stealth | -11 -10 -9 -9 -9 -8 -8 -7 -7 -7 -7 -6 -6 -6 -6 -6 -5 -5 -5 -5 -5 -5 -4 -4 -4 -4 -3 -3 -2 -1 -1 --------- Run | Scr Mat Mat Min Exi Min Mat Fac Low Low Zio Pro Fac Low Low Dat Pro Fac Ext Cet Arc Hub Fac Upp Upp War Pro Res Res Acc Com Distress Signals 29 | . 3 3 . . . . 1 . . . . . . . . . 1 4 2 . . . . . . . 5 2 3 5 Communications Jammed 56 | . . . . . . . . . . . . . . . . . . . . . . . . . . . 1 . 55 . Distress Signals 56 | . . . . . . . . . . . . . . . . . . . . . . . . . . . 1 . 55 . Times Spotted 486 | . 18 14 14 . 3 13 8 16 5 . 10 8 1 7 . 21 8 33 18 15 18 7 7 . 29 9 10 5 37 152 Peak Tracking Total 43 | . 6 7 4 . 3 6 2 4 9 . 5 3 1 3 . 14 8 5 5 2 8 5 3 . 11 4 4 4 16 43 Tactical Retreats 19 | . 2 . 1 . . 1 . . 2 . . 2 . . . . 1 1 . . . 1 . . . . . . 2 6 Traps | -11 -10 -9 -9 -9 -8 -8 -7 -7 -7 -7 -6 -6 -6 -6 -6 -5 -5 -5 -5 -5 -5 -4 -4 -4 -4 -3 -3 -2 -1 -1 ------- Run | Scr Mat Mat Min Exi Min Mat Fac Low Low Zio Pro Fac Low Low Dat Pro Fac Ext Cet Arc Hub Fac Upp Upp War Pro Res Res Acc Com Traps Triggered 16 | . 1 2 . . . 2 2 . . . . . . . . . . 2 . . 3 . . . . . 1 . . 3 Indirectly . | . . . . . . . . . . . . . . . . . . . . . . . . . . . . . . . Trap Hack Attempts . | . . . . . . . . . . . . . . . . . . . . . . . . . . . . . . . Triggered . | . . . . . . . . . . . . . . . . . . . . . . . . . . . . . . . Disarmed . | . . . . . . . . . . . . . . . . . . . . . . . . . . . . . . . Reprogrammed . | . . . . . . . . . . . . . . . . . . . . . . . . . . . . . . . Reused . | . . . . . . . . . . . . . . . . . . . . . . . . . . . . . . . Traps Extracted . | . . . . . . . . . . . . . . . . . . . . . . . . . . . . . . . Installed . | . . . . . . . . . . . . . . . . . . . . . . . . . . . . . . . Triggered 15 | . . . . . . . . . . . . . . . . . . . . . . . . . 14 1 . . . . Machines | -11 -10 -9 -9 -9 -8 -8 -7 -7 -7 -7 -6 -6 -6 -6 -6 -5 -5 -5 -5 -5 -5 -4 -4 -4 -4 -3 -3 -2 -1 -1 ---------- Run | Scr Mat Mat Min Exi Min Mat Fac Low Low Zio Pro Fac Low Low Dat Pro Fac Ext Cet Arc Hub Fac Upp Upp War Pro Res Res Acc Com Machines Disabled 21 | . . . . . . 1 . . . . . 6 . . . . . 5 . 2 2 1 . . 1 . . . . 3 Max in Single Turn 6 | . . . . . . 1 . . . . . 6 . . . . . 1 . . 1 1 . . 1 . . . . 1 Garrison Access 1 | . . . . . . . . . . . . . . . . . . . . . . . . . . . . . 1 . Network Hub 1 | . . . . . . . . . . . . . . . . . . . . . 1 . . . . . . . . . Machines Sabotaged 1 | . . . . . . . . . . . . . . . . . . . . . 1 . . . . . . . . . Garrisons Compromised . | . . . . . . . . . . . . . . . . . . . . . . . . . . . . . . . Overloaded Fab Kills . | . . . . . . . . . . . . . . . . . . . . . . . . . . . . . . . Hacking | -11 -10 -9 -9 -9 -8 -8 -7 -7 -7 -7 -6 -6 -6 -6 -6 -5 -5 -5 -5 -5 -5 -4 -4 -4 -4 -3 -3 -2 -1 -1 --------- Run | Scr Mat Mat Min Exi Min Mat Fac Low Low Zio Pro Fac Low Low Dat Pro Fac Ext Cet Arc Hub Fac Upp Upp War Pro Res Res Acc Com Machines Accessed 81 | . 7 3 . 1 . 2 3 . . 1 1 5 . . 4 . 6 4 1 . 5 3 1 . 8 . 7 . 6 13 Terminals 47 | . 5 3 . . . 2 1 . . . 1 2 . . . . 3 4 1 . 5 2 . . . . 3 . 3 12 Fabricators 6 | . . . . . . . . . . . . 2 . . . . 1 . . . . . . . . . 2 . 1 . Repair Stations 2 | . . . . . . . 1 . . . . . . . . . . . . . . . . . . . . . 1 . Recycling Units 8 | . 2 . . . . . 1 . . . . 1 . . . . 1 . . . . 1 . . . . 1 . . 1 Scanalyzers 1 | . . . . . . . . . . . . . . . . . . . . . . . . . . . 1 . . . Garrison Access 2 | . . . . . . . . . . . . . . . . . 1 . . . . . . . . . . . 1 . Total Hacks 266 | . 14 8 . 1 . 8 11 . . 3 1 14 . . 29 . 15 8 2 . 11 28 7 . 12 . 20 . 21 53 Successful 135 | . 5 3 . 1 . 4 6 . . 3 1 10 . . 29 . 4 4 1 . 4 13 7 . 12 . 6 . 8 14 Failed 131 | . 9 5 . . . 4 5 . . . . 4 . . . . 11 4 1 . 7 15 . . . . 14 . 13 39 Catastrophic 38 | . 1 1 . . . 2 1 . . . . 2 . . . . 2 2 1 . 3 2 . . . . 6 . 4 11 Database Lockouts . | . . . . . . . . . . . . . . . . . . . . . . . . . . . . . . . Manual 106 | . 9 6 . . . 2 8 . . . . 7 . . . . 7 4 . . 10 21 . . 1 . 7 . 8 16 Terminals 161 | . 12 8 . . . 8 2 . . . 1 7 . . . . 8 8 2 . 11 23 . . . . 7 . 13 51 Fabricators 12 | . . . . . . . . . . . . 4 . . . . 2 . . . . . . . . . 2 . 4 . Repair Stations 4 | . . . . . . . 2 . . . . . . . . . . . . . . . . . . . . . 2 . Recycling Units 24 | . 2 . . . . . 7 . . . . 3 . . . . 3 . . . . 5 . . . . 2 . . 2 Scanalyzers 9 | . . . . . . . . . . . . . . . . . . . . . . . . . . . 9 . . . Garrison Access 4 | . . . . . . . . . . . . . . . . . 2 . . . . . . . . . . . 2 . Terminal Hacks 93 | . 2 2 . 1 . 4 . . . 3 1 3 . . 29 . 1 3 1 . . 8 7 . 12 . 1 . 5 10 Record 30 | . . . . 1 . . . . . . 1 . . . 11 . . . . . . . 7 . 10 . . . . . Part Schematic 14 | . . . . . . . . . . 3 . . . . 9 . . . . . . 2 . . . . . . . . Robot Schematic 6 | . . . . . . . . . . . . . . . 6 . . . . . . . . . . . . . . . Robot Analysis 6 | . 2 . . . . 1 . . . . . . . . . . . 1 . . . . . . . . . . 2 . Prototype ID Bank 6 | . . 2 . . . . . . . . . . . . 3 . . 1 . . . . . . . . . . . . Open Door 4 | . . . . . . . . . . . . . . . . . . . 1 . . . . . 2 . . . . 1 Branch Access Points 3 | . . . . . . . . . . . . 1 . . . . . . . . . 1 . . . . . . 1 . Emergency Access Points 3 | . . . . . . . . . . . . 1 . . . . . . . . . . . . . . . . . 2 Machine Index 1 | . . . . . . . . . . . . . . . . . . . . . . . . . . . . . 1 . Terminal Index 5 | . . . . . . 1 . . . . . . . . . . 1 . . . . 1 . . . . 1 . . 1 Recycling Unit Index 1 | . . . . . . . . . . . . . . . . . . . . . . . . . . . . . . 1 Alert Level 2 | . . . . . . . . . . . . . . . . . . . . . . . . . . . . . . 2 Unreport Threat 2 | . . . . . . . . . . . . . . . . . . 1 . . . 1 . . . . . . . . Locate Traps 3 | . . . . . . 2 . . . . . . . . . . . . . . . . . . . . . . . 1 Maintenance Status 1 | . . . . . . . . . . . . . . . . . . . . . . 1 . . . . . . . . Surveillance Status 1 | . . . . . . . . . . . . . . . . . . . . . . . . . . . . . . 1 Patrol Status 1 | . . . . . . . . . . . . . . . . . . . . . . 1 . . . . . . . . Recall Extermination 1 | . . . . . . . . . . . . . . . . . . . . . . . . . . . . . 1 . Registered Components 2 | . . . . . . . . . . . . 1 . . . . . . . . . 1 . . . . . . . . Disengage Seal 1 | . . . . . . . . . . . . . . . . . . . . . . . . . . . . . . 1 Fabricator Hacks 4 | . . . . . . . . . . . . 2 . . . . 1 . . . . . . . . . 1 . . . Network Status 1 | . . . . . . . . . . . . . . . . . . . . . . . . . . . 1 . . . Load Schematic 1 | . . . . . . . . . . . . 1 . . . . . . . . . . . . . . . . . . Build 2 | . . . . . . . . . . . . 1 . . . . 1 . . . . . . . . . . . . . Repair Station Hacks 3 | . . . . . . . 2 . . . . . . . . . . . . . . . . . . . . . 1 . Scan Component 2 | . . . . . . . 1 . . . . . . . . . . . . . . . . . . . . . 1 . Repair 1 | . . . . . . . 1 . . . . . . . . . . . . . . . . . . . . . . . Recycling Unit Hacks . | . . . . . . . . . . . . . . . . . . . . . . . . . . . . . . . Scanalyzer 4 | . . . . . . . . . . . . . . . . . . . . . . . . . . . 4 . . . Insert Component 2 | . . . . . . . . . . . . . . . . . . . . . . . . . . . 2 . . . Analyze 2 | . . . . . . . . . . . . . . . . . . . . . . . . . . . 2 . . . Garrison Access Hacks 1 | . . . . . . . . . . . . . . . . . . . . . . . . . . . . . 1 . Seal Access 1 | . . . . . . . . . . . . . . . . . . . . . . . . . . . . . 1 . Unauthorized Hacks 30 | . 3 1 . . . . 4 . . . . 5 . . . . 2 1 . . 4 5 . . . . . . 1 4 Terminals 15 | . 1 1 . . . . . . . . . 2 . . . . . 1 . . 4 2 . . . . . . . 4 Botnet 8 | . . . . . . . . . . . . 1 . . . . . . . . 2 1 . . . . . . . 4 Operators 6 | . 1 1 . . . . . . . . . 1 . . . . . 1 . . 1 1 . . . . . . . . Sabotage 1 | . . . . . . . . . . . . . . . . . . . . . 1 . . . . . . . . . Fabricators 1 | . . . . . . . . . . . . . . . . . . . . . . . . . . . . . 1 . Liberate 1 | . . . . . . . . . . . . . . . . . . . . . . . . . . . . . 1 . Repair Stations . | . . . . . . . . . . . . . . . . . . . . . . . . . . . . . . . Recycling Units 14 | . 2 . . . . . 4 . . . . 3 . . . . 2 . . . . 3 . . . . . . . . Monitor 4 | . . . . . . . 1 . . . . 1 . . . . 1 . . . . 1 . . . . . . . . Reject 2 | . . . . . . . 1 . . . . 1 . . . . . . . . . . . . . . . . . . Recyclers 4 | . . . . . . . 1 . . . . 1 . . . . 1 . . . . 1 . . . . . . . . Mask 2 | . . . . . . . 1 . . . . . . . . . . . . . . 1 . . . . . . . . Tunnel 2 | . 2 . . . . . . . . . . . . . . . . . . . . . . . . . . . . . Scanalyzers . | . . . . . . . . . . . . . . . . . . . . . . . . . . . . . . . Garrison Access . | . . . . . . . . . . . . . . . . . . . . . . . . . . . . . . . Data Cores Recovered 1 | . . . . . . . . . . . . . . . . . . 1 . . . . . . . . . . . . Used . | . . . . . . . . . . . . . . . . . . . . . . . . . . . . . . . Hacking Detections 56 | . 4 3 . . . 2 2 . . . . 5 . . . . 6 4 . . 4 3 . . . . 6 . 5 12 Full Trace Events 12 | . 1 2 . . . . 1 . . . . 1 . . . . 2 . . . 2 . . . . . . . . 3 Feedback Events 1 | . . . . . . . . . . . . . . . . . 1 . . . . . . . . . . . . . Corruption 1 | . . . . . . . . . . . . . . . . . 1 . . . . . . . . . . . . . Feedback Blocked . | . . . . . . . . . . . . . . . . . . . . . . . . . . . . . . . Robot Schematics Acquired 9 | . . . . . . . . . . 3 . . . . 6 . . . . . . . . . . . . . . . Robots Built . | . . . . . . . . . . . . . . . . . . . . . . . . . . . . . . . Authchips . | . . . . . . . . . . . . . . . . . . . . . . . . . . . . . . . Time . | . . . . . . . . . . . . . . . . . . . . . . . . . . . . . . . Total Robot Build Rating . | . . . . . . . . . . . . . . . . . . . . . . . . . . . . . . . Part Schematics Acquired 28 | . . . . . . . . . . 15 . . . . 9 . . . . . . 2 . . . . 2 . . . Parts Built 4 | . . . . . . . . . . . . 2 . . . . 2 . . . . . . . . . . . . . Authchips . | . . . . . . . . . . . . . . . . . . . . . . . . . . . . . . . Time 106 | . . . . . . . . . . . . 53 . . . . 53 . . . . . . . . . . . . . Total Part Build Rating 24 | . . . . . . . . . . . . 12 . . . . 12 . . . . . . . . . . . . . Parts Repaired 1 | . . . . . . . 1 . . . . . . . . . . . . . . . . . . . . . . . Time 38 | . . . . . . . 38 . . . . . . . . . . . . . . . . . . . . . . . Parts Recycled . | . . . . . . . . . . . . . . . . . . . . . . . . . . . . . . . Recycled Matter . | . . . . . . . . . . . . . . . . . . . . . . . . . . . . . . . Retrieved Matter . | . . . . . . . . . . . . . . . . . . . . . . . . . . . . . . . Retrieved Components . | . . . . . . . . . . . . . . . . . . . . . . . . . . . . . . . Parts Scanalyzed 2 | . . . . . . . . . . . . . . . . . . . . . . . . . . . 2 . . . Part Schematics Acquired 2 | . . . . . . . . . . . . . . . . . . . . . . . . . . . 2 . . . Parts Damaged . | . . . . . . . . . . . . . . . . . . . . . . . . . . . . . . . Bothacking | -11 -10 -9 -9 -9 -8 -8 -7 -7 -7 -7 -6 -6 -6 -6 -6 -5 -5 -5 -5 -5 -5 -4 -4 -4 -4 -3 -3 -2 -1 -1 ------------ Run | Scr Mat Mat Min Exi Min Mat Fac Low Low Zio Pro Fac Low Low Dat Pro Fac Ext Cet Arc Hub Fac Upp Upp War Pro Res Res Acc Com Used RIF Installer . | . . . . . . . . . . . . . . . . . . . . . . . . . . . . . . . Robots Hacked 4 | . . . . . . . . . . . . . . . . . . . . . . . . . . . 2 . . 2 Non-combat . | . . . . . . . . . . . . . . . . . . . . . . . . . . . . . . . Combat 3 | . . . . . . . . . . . . . . . . . . . . . . . . . . . 2 . . 1 Robot Hacks Applied 3 | . . . . . . . . . . . . . . . . . . . . . . . . . . . 2 . . 1 parse_system 3 | . . . . . . . . . . . . . . . . . . . . . . . . . . . 2 . . 1 Manual 1 | . . . . . . . . . . . . . . . . . . . . . . . . . . . . . . 1 Relay Couplers Released . | . . . . . . . . . . . . . . . . . . . . . . . . . . . . . . . Fabnet Peak Effective % . | . . . . . . . . . . . . . . . . . . . . . . . . . . . . . . . Robots Rewired 16 | . . . . . . . . . 1 . . . . . . . . 15 . . . . . . . . . . . . Allies Hacked 1 | . . . . . . . . . . . . . . . . . . . . . . . . . . . . . 1 . Hacks Repelled . | . . . . . . . . . . . . . . . . . . . . . . . . . . . . . . . Allies | -11 -10 -9 -9 -9 -8 -8 -7 -7 -7 -7 -6 -6 -6 -6 -6 -5 -5 -5 -5 -5 -5 -4 -4 -4 -4 -3 -3 -2 -1 -1 -------- Run | Scr Mat Mat Min Exi Min Mat Fac Low Low Zio Pro Fac Low Low Dat Pro Fac Ext Cet Arc Hub Fac Upp Upp War Pro Res Res Acc Com Total Allies 32 | . . . 2 . . . . . 1 . . . . . . 1 . 25 . . . . . . . . . . 3 . Largest Group 18 | . . . 2 . . . . . 1 1 1 . . . . 1 . 18 17 6 . . . . . . . . 3 . Highest-Rated Group 623 | . . . 47 . . . . . 32 32 32 . . . . 96 . 623 560 261 . . . . . . . . 174 . Highest-Rated Ally 159 | . . . 31 . . . . . 32 32 32 . . . . 96 . 159 151 136 . . . . . . . . 58 . Total Orders . | . . . . . . . . . . . . . . . . . . . . . . . . . . . . . . . Ally Attacks 291 | . . . 28 . . . . . . . 6 . . . . 9 . 102 92 8 . . . . . . . . 46 . Total Damage 7117 | . . . 352 . . . . . . . 242 . . . . 310 . 2685 2206 82 . . . . . . . . 1240 . Kills 47 | . . . 6 . . . . . . . 3 . . . . 1 . 17 12 1 . . . . . . . . 7 . Allies Corrupted 1 | . . . . . . . . . . . . . . . . . . 1 . . . . . . . . . . . . Allies Melted 2 | . . . . . . . . . . . . . . . . . . 1 . . . . . . . . . 1 . . Intel | -11 -10 -9 -9 -9 -8 -8 -7 -7 -7 -7 -6 -6 -6 -6 -6 -5 -5 -5 -5 -5 -5 -4 -4 -4 -4 -3 -3 -2 -1 -1 ------- Run | Scr Mat Mat Min Exi Min Mat Fac Low Low Zio Pro Fac Low Low Dat Pro Fac Ext Cet Arc Hub Fac Upp Upp War Pro Res Res Acc Com Robot Analysis Total 6 | . 2 . . . . 1 . . . . . . . . . . . 1 . . . . . . . . . . 2 . Derelict Logs Recovered 7 | . . . . . . . . 1 . 2 1 . . 1 . 1 . . . . . . 1 . . . . . . . Drone Launches . | . . . . . . . . . . . . . . . . . . . . . . . . . . . . . . . Drone Recoveries . | . . . . . . . . . . . . . . . . . . . . . . . . . . . . . . . Exploration | -11 -10 -9 -9 -9 -8 -8 -7 -7 -7 -7 -6 -6 -6 -6 -6 -5 -5 -5 -5 -5 -5 -4 -4 -4 -4 -3 -3 -2 -1 -1 ------------- Run | Scr Mat Mat Min Exi Min Mat Fac Low Low Zio Pro Fac Low Low Dat Pro Fac Ext Cet Arc Hub Fac Upp Upp War Pro Res Res Acc Com Turns Passed 22370 | 135 606 418 673 229 684 521 853 852 387 2066 924 586 283 826 103 705 213 1343 317 702 599 621 576 444 935 573 805 442 859 3090 Spaces Moved 14210 | 71 334 207 373 143 453 306 548 550 194 1380 444 359 243 701 90 375 423 833 161 169 276 413 465 395 832 510 650 354 451 1507 Core 168 | 3 . . . . . . . . . . . . . . . 54 95 . . . . . . . . . . . . 16 Treads 1169 | . . 207 373 143 164 . . . . . . . . . . . . . . . . . . . . . . 2 6 274 Legs 7101 | 68 334 . . . 289 306 548 550 194 1380 444 359 243 701 90 321 . . 76 169 276 222 . . . . . . . 531 Wheels 5369 | . . . . . . . . . . . . . . . . . . 758 85 . . 191 465 395 832 510 650 352 445 686 Hover 1 | . . . . . . . . . . . . . . . . . 1 . . . . . . . . . . . . . Flight 402 | . . . . . . . . . . . . . . . . . 327 75 . . . . . . . . . . . . Fastest Speed 39 | 50 120 160 160 160 140 133 123 130 130 130 130 110 112 112 112 50 39 39 130 190 120 90 110 110 90 90 110 110 110 50 Average Speed 127 | 117 120 160 160 160 147 134 132 132 168 145 179 132 112 112 112 164 41 107 158 190 169 119 110 110 91 90 110 114 135 140 Slowest Speed 270 | 120 120 160 160 160 160 140 136 136 270 270 200 200 112 112 112 190 50 130 190 190 190 260 110 110 110 90 110 250 250 225 Overloaded Moves . | . . . . . . . . . . . . . . . . . . . . . . . . . . . . . . . Propulsion Burnouts . | . . . . . . . . . . . . . . . . . . . . . . . . . . . . . . . Robots Hopped . | . . . . . . . . . . . . . . . . . . . . . . . . . . . . . . . Cave-ins Triggered . | . . . . . . . . . . . . . . . . . . . . . . . . . . . . . . . Exploration Rate (%) 47 | 4 47 27 70 49 86 32 16 53 39 88 56 8 49 78 68 54 14 83 64 78 24 12 69 52 94 60 20 10 14 41 Regions Visited 30 Branch Regions 20 Pre-discovered Areas 8 | . 2 . . 1 . . . . . 2 . . . . 1 1 . . . . . . . . 1 . . . . . Known Exits Taken 9 | . . . . . . . 1 . . . . 1 1 . . 1 1 . . . . 1 1 . . . . 1 1 . Unknown Exits Taken 21 | 1 1 1 1 1 1 1 . 1 1 1 1 . . 1 1 . . 1 1 1 1 . . 1 1 1 1 . . . Scrap Searched 18 | . . . 1 . 2 . . 4 . 3 3 . . . . 1 . . . . . . 3 1 . . . . . . Spaces Dug 29 | . . . . . . . . . . . . 4 . . . . . . . . 3 3 . . . 12 . . . 7 Terrain Destroyed 620 | . . . 39 . 23 32 . . . . 36 41 3 3 . 19 . 3 3 4 12 14 25 . 15 176 10 1 51 110 Melee . | . . . . . . . . . . . . . . . . . . . . . . . . . . . . . . . Projectile 271 | . . . . . . 1 . . . . 36 10 3 3 . 13 . 3 3 4 12 14 25 . 15 74 10 1 5 39 AOE 347 | . . . 39 . 23 31 . . . . . 30 . . . 6 . . . . . . . . . 102 . . 46 70 Terrain Rammed . | . . . . . . . . . . . . . . . . . . . . . . . . . . . . . . . Walls Destroyed . | . . . . . . . . . . . . . . . . . . . . . . . . . . . . . . . Machines Disabled . | . . . . . . . . . . . . . . . . . . . . . . . . . . . . . . . Actions | -11 -10 -9 -9 -9 -8 -8 -7 -7 -7 -7 -6 -6 -6 -6 -6 -5 -5 -5 -5 -5 -5 -4 -4 -4 -4 -3 -3 -2 -1 -1 --------- Run | Scr Mat Mat Min Exi Min Mat Fac Low Low Zio Pro Fac Low Low Dat Pro Fac Ext Cet Arc Hub Fac Upp Upp War Pro Res Res Acc Com Total 16991 | 98 458 252 406 144 468 400 644 609 234 1440 499 436 247 720 92 425 455 1197 204 513 361 492 492 404 948 561 716 384 584 2108 Wait 1048 | 1 43 7 1 . 6 41 46 17 17 26 4 21 1 3 3 7 18 81 10 311 42 15 5 2 46 19 29 1 29 196 Move 14180 | 70 333 206 372 142 452 305 547 549 193 1379 443 358 242 700 89 374 422 832 160 168 275 412 464 394 831 509 649 353 450 1507 Hop . | . . . . . . . . . . . . . . . . . . . . . . . . . . . . . . . Pick Up 176 | 7 5 4 3 1 3 9 8 6 2 4 2 7 . 3 . 4 3 13 4 2 1 9 2 1 5 . 5 7 16 40 Fast Attach 183 | 7 3 6 1 . . 9 3 3 . 8 6 6 . . . 1 8 16 6 7 7 12 1 1 11 2 6 5 10 38 Attach 103 | . 2 . 2 . 1 3 3 2 . 1 1 3 . 1 . 4 4 3 1 . . 6 1 . . 1 3 2 12 47 Detach 23 | . . . . . . . . . . 1 . 1 . . . 1 . . . . . . . 1 1 1 1 . 3 13 Swap 131 | . 7 5 1 . 1 5 9 3 3 7 6 9 1 . . . . 15 2 1 6 5 2 3 10 2 4 3 4 17 Drop 246 | . 9 5 2 1 2 16 12 5 2 13 8 12 . 2 . 4 . 30 10 7 7 11 2 2 20 2 7 10 5 40 Fire 694 | 13 56 17 24 . 3 10 11 24 8 1 29 18 3 11 . 27 . 45 11 17 23 22 15 . 24 25 11 3 51 192 Melee 16 | . . 2 . . . . 5 . . . . . . . . . . 9 . . . . . . . . . . . . Ram 5 | . . . . . . . . . . . . . . . . . . . . . . . . . . . 1 . . 4 Kick 6 | . . . . . . 2 . . . . . 1 . . . 3 . . . . . . . . . . . . . . Crush 3 | . . . . . . . . . . . . . . . . . . . . . . . . . . . . . 3 . Escape Stasis 14 | . . . . . . . . . . . . . . . . . . . . . . . . . . . . . . 14 Rewire 163 | . . . . . . . . . 9 . . . . . . . . 153 . . . . . . . . . . 1 . Trap . | . . . . . . . . . . . . . . . . . . . . . . . . . . . . . . . Miscellaneous . | . . . . . . . . . . . . . . . . . . . . . . . . . . . . . . . Route ------- -11/Scrapyard -10/Materials -9/Materials -9/Mines (discovered 3 exits: *Mat x2 / *Exi) -9/Exiles (discovered 2 exits: [*Min x2]) -8/Mines (discovered 2 exits: *Mat x2) -8/Materials -7/Factory (discovered 2 exits: *Sto / *Low) -7/Lower Caves -7/Lower Caves (discovered 2 exits: *Fac / *Zio) -7/Zion -6/Proximity Caves -6/Factory (discovered 2 exits: *Low x2) -6/Lower Caves -6/Lower Caves (discovered 2 exits: Fac / *Dat) -6/Data Miner -5/Proximity Caves -5/Factory (discovered 3 exits: Upp / *Ext x2) -5/Extension (discovered 2 exits: *Fac / *Cet) -5/Cetus (discovered 2 exits: *Fac / *Arc) -5/Archives (discovered 2 exits: *Fac / *Hub) -5/Hub_04(d) -4/Factory (discovered 3 exits: *Upp x2 / Arm) -4/Upper Caves -4/Upper Caves (discovered 2 exits: *Res / *War) -4/Warlord -3/Proximity Caves -3/Research -2/Research -1/Access -1/Command History --------- Turn | Location | Event 3 | -11/Scrapyard | Discovered new exit (range 16) 136 | -11/Scrapyard | Entered Materials 353 | -10/Materials | Build established: Mutant 617 | -10/Materials | Discovered new exit (range 16) 742 | -10/Materials | Entered another Materials area 742 | -9/Materials | Evolved 2 slots: Utility x1, Weapon x1 989 | -9/Materials | Met 8R-AWN 1137 | -9/Materials | Discovered new exit (range 12) 1160 | -9/Materials | Entered Mines 1162 | -9/Mines | Followed 8R-AWN into the Mines 1251 | -9/Mines | Discovered new exit (range 5) 1262 | -9/Mines | Build established: Tank 1325 | -9/Mines | Discovered new exit (range 12) 1446 | -9/Mines | Discovered new exit (range 8) 1487 | -9/Mines | Assembled infested the area 1492 | -9/Mines | Assisted by a Guerilla fighting off Assembled 1833 | -9/Mines | Entered Exiles 1857 | -9/Exiles | Discovered new exit (range 15) 1875 | -9/Exiles | Welcomed by 8R-AWN 1902 | -9/Exiles | Met EX-HEX 1961 | -9/Exiles | Build established: Scavenger-Mutant 1963 | -9/Exiles | Met EX-DEC 1971 | -9/Exiles | Learned location of Zion (-7) 2049 | -9/Exiles | Discovered new exit (range 10) 2062 | -9/Exiles | Entered Mines 2298 | -8/Mines | Discovered new exit (range 9) 2631 | -8/Mines | Discovered new exit (range 9) 2746 | -8/Mines | Entered Materials 2746 | -8/Materials | Evolved 2 slots: Propulsion x1, Utility x1 3222 | -8/Materials | Discovered new exit (range 16) 3267 | -8/Materials | Entered Factory 3267 | -7/Factory | Evolved 2 slots: Utility x1, Weapon x1 3572 | -7/Factory | Repaired Hrd. Medium Armor Plating 3593 | -7/Factory | Build established: Scavenger-Gunner 3699 | -7/Factory | Discovered new exit (range 5) 3833 | -7/Factory | Discovered new exit (range 6) 4048 | -7/Factory | Identified exit to Storage 4115 | -7/Factory | Identified exit to Lower Caves 4120 | -7/Factory | Entered Lower Caves 4442 | -7/Lower Caves | Spotted B-75 Beast 4523 | -7/Lower Caves | Destroyed B-75 Beast 4538 | -7/Lower Caves | Discovered new exit (range 8) 4593 | -7/Lower Caves | Lost 3 parts (2n1u) 4839 | -7/Lower Caves | Build established: Gunner 4972 | -7/Lower Caves | Entered another Lower Caves area 5003 | -7/Lower Caves | Discovered new exit (range 15) 5159 | -7/Lower Caves | Attracted the attention of an 0b10 outpost 5322 | -7/Lower Caves | Discovered new exit (range 4) 5359 | -7/Lower Caves | Entered Zion 5359 | -7/Zion | Accompanied by 1 ally 5475 | -7/Zion | System corruption cleaned by Quarantine Array 5749 | -7/Zion | Discovered new exit (range 8) 5844 | -7/Zion | Found Prototype Device 5844 | -7/Zion | Identified Mobile Refinery Mk. CCLXVII 5952 | -7/Zion | Learned location of Armory (-4) 5961 | -7/Zion | Learned location of Extension (-5) 6048 | -7/Zion | Found Prototype Device 6049 | -7/Zion | Identified Phasing AFG 6280 | -7/Zion | Given A8's code to call for help 6378 | -7/Zion | Given the Hacking Drone Bay 6492 | -7/Zion | Build established: Derelict-Gunner 6796 | -7/Zion | Learned location of 1 exit from Lower Caves 7425 | -7/Zion | Entered Proximity Caves 7425 | -6/Proximity Caves | Accompanied by 1 ally 7760 | -6/Proximity Caves | Attracted the attention of an 0b10 checkpoint 7873 | -6/Proximity Caves | Spotted B-75 Beast 7881 | -6/Proximity Caves | Build established: Gunner 8225 | -6/Proximity Caves | Discovered new exit (range 14) 8333 | -6/Proximity Caves | Build established: Derelict-Gunner 8349 | -6/Proximity Caves | Entered Factory 8349 | -6/Factory | Evolved 2 slots: Propulsion x1, Utility x1 8707 | -6/Factory | Identified exit to Lower Caves 8776 | -6/Factory | Garrison activated, responded to threat 8780 | -6/Factory | Fabricated Adv. System Restoration Module (x2) 8819 | -6/Factory | Lost 3 parts (1n1u1w) 8935 | -6/Factory | Entered Lower Caves 8936 | -6/Lower Caves | Identified exit to Lower Caves 9122 | -6/Lower Caves | Encountered a Warlord checkpoint 9199 | -6/Lower Caves | Spotted B-75 Beast 9218 | -6/Lower Caves | Entered another Lower Caves area 9329 | -6/Lower Caves | Attracted the attention of an 0b10 checkpoint 9438 | -6/Lower Caves | Identified exit to Factory 9721 | -6/Lower Caves | Discovered new exit (range 7) 9892 | -6/Lower Caves | Build established: Scavenger-Mutant 10044 | -6/Lower Caves | Entered Data Miner 10044 | -6/Data Miner | Discovered new exit (range 6) 10067 | -6/Data Miner | Met Data Miner 10085 | -6/Data Miner | Learned location of Section 7 (-2) 10085 | -6/Data Miner | Acquired the access code to Warlord's prototype stash 10106 | -6/Data Miner | Received God Mode back door access code from Data Miner 10147 | -6/Data Miner | Entered Proximity Caves 10652 | -5/Proximity Caves | Escorted by Enhanced Grunt 10795 | -5/Proximity Caves | Spotted B-75 Beast 10804 | -5/Proximity Caves | Attracted the attention of an 0b10 outpost 10838 | -5/Proximity Caves | Core integrity fell below 50% 10846 | -5/Proximity Caves | Discovered exit to Factory (range 15) 10852 | -5/Proximity Caves | Entered Factory 10852 | -5/Factory | Evolved 2 slots: Power x1, Propulsion x1 10853 | -5/Factory | Identified exit to Upper Caves 10853 | -5/Factory | Identified exit to Extension 10860 | -5/Factory | Lost 10 parts (4n3u3w) 10991 | -5/Factory | Fabricated Linear Gravjet (x2) 11063 | -5/Factory | Discovered exit to Extension (range 6) 11065 | -5/Factory | Entered Extension 11100 | -5/Extension | Rescued a captive Derelict 11113 | -5/Extension | Build established: Mutant 11127 | -5/Extension | Rescued a captive Derelict 11127 | -5/Extension | Rescued a captive Derelict 11331 | -5/Extension | Rescued a captive Derelict 11332 | -5/Extension | Rescued a captive Derelict 11394 | -5/Extension | Rescued A7 11582 | -5/Extension | Build established: Scavenger-Gunner 11657 | -5/Extension | Spotted B-75 Beast 11672 | -5/Extension | Spotted B-75 Beast 11676 | -5/Extension | Allies destroyed B-75 Beast 11690 | -5/Extension | Destroyed B-75 Beast 11805 | -5/Extension | Rescued a captive Derelict 11856 | -5/Extension | Rescued a captive Derelict 11858 | -5/Extension | Rescued a captive Derelict 12139 | -5/Extension | Rescued a captive Derelict 12240 | -5/Extension | Disrupted transfer network 12351 | -5/Extension | Discovered new exit (range 10) 12352 | -5/Extension | Discovered new exit (range 6) 12408 | -5/Extension | Entered Cetus 12408 | -5/Cetus | Accompanied by 17 allies (A7) 12413 | -5/Cetus | Acquired a Cetus Manufacturing Module code from A7 12426 | -5/Cetus | Spotted Cetus Guard 12426 | -5/Cetus | Spotted Cetus Guard 12427 | -5/Cetus | Spotted Cetus Guard 12433 | -5/Cetus | Spotted Cetus Guard 12437 | -5/Cetus | Destroyed Cetus Guard 12446 | -5/Cetus | Allies destroyed Cetus Guard 12446 | -5/Cetus | Allies destroyed Cetus Guard 12448 | -5/Cetus | Allies destroyed Cetus Guard 12508 | -5/Cetus | Escorted A7 to Cetus Mainframe 12544 | -5/Cetus | Discovered new exit (range 16) 12609 | -5/Cetus | Spotted Cetus Guard 12609 | -5/Cetus | Spotted Cetus Guard 12612 | -5/Cetus | Spotted Cetus Guard 12613 | -5/Cetus | Spotted Cetus Guard 12615 | -5/Cetus | Destroyed Cetus Guard 12627 | -5/Cetus | Allies destroyed Cetus Guard 12629 | -5/Cetus | Discovered new exit (range 16) 12632 | -5/Cetus | Destroyed Cetus Guard 12640 | -5/Cetus | Allies destroyed Cetus Guard 12648 | -5/Cetus | Met Revision 17 12725 | -5/Cetus | Entered Archives 12725 | -5/Archives | Accompanied by 6 allies (A7) 12730 | -5/Archives | Received a hacking code to weaken MAIN.C 12843 | -5/Archives | Discovered new exit (range 14) 12892 | -5/Archives | System corruption reached 10% 12929 | -5/Archives | Discovered new exit (range 15) 13007 | -5/Archives | Unable to access archive contents 13427 | -5/Archives | Entered Hub_04(d) 13625 | -5/Hub_04(d) | Discovered new exit (range 15) 13823 | -5/Hub_04(d) | Incoming investigation squad redirected 13996 | -5/Hub_04(d) | Network Hub disabled 14000 | -5/Hub_04(d) | Spotted Lightning 14004 | -5/Hub_04(d) | Spotted Lightning 14016 | -5/Hub_04(d) | Spotted Lightning 14024 | -5/Hub_04(d) | Incoming investigation squad redirected 14026 | -5/Hub_04(d) | Entered Factory 14026 | -4/Factory | Evolved 2 slots: Propulsion x1, Utility x1 14115 | -4/Factory | Identified exit to Upper Caves 14115 | -4/Factory | Identified exit to Armory 14297 | -4/Factory | Spotted B-86 Titan 14333 | -4/Factory | Destroyed B-86 Titan 14363 | -4/Factory | Lost 7 parts (1p3n1u2w) 14647 | -4/Factory | Entered Upper Caves 14808 | -4/Upper Caves | Identified exit to Upper Caves 15108 | -4/Upper Caves | Learned location of 1 exit from Factory 15108 | -4/Upper Caves | Learned Research stockpile data 15108 | -4/Upper Caves | Learned Extension security intel 15108 | -4/Upper Caves | Learned Armory security intel 15108 | -4/Upper Caves | Learned Extension terminal intel 15108 | -4/Upper Caves | Learned Extension garrison access intel 15223 | -4/Upper Caves | Entered another Upper Caves area 15289 | -4/Upper Caves | Discovered new exit (range 5) 15653 | -4/Upper Caves | Discovered new exit (range 12) 15667 | -4/Upper Caves | Entered Warlord 15704 | -4/Warlord | System corruption cleaned by Quarantine Array 15764 | -4/Warlord | Build established: Scavenger-Skirmisher 15968 | -4/Warlord | Learned Factory garrison access intel 15968 | -4/Warlord | Learned Armory recycling unit intel 15969 | -4/Warlord | Learned 4 Command zone layouts 15970 | -4/Warlord | Learned location of Quarantine (-2) 15970 | -4/Warlord | Learned Armory emergency access door positions 16080 | -4/Warlord | Visited the Vortex Lab 16090 | -4/Warlord | Found Prototype Launcher 16092 | -4/Warlord | Found Prototype Piercing Weapon 16097 | -4/Warlord | Warlord's base attacked by MAIN.C 16142 | -4/Warlord | Met Warlord 16150 | -4/Warlord | Opened Warlord's prototype stash 16154 | -4/Warlord | Found Prototype Reactor 16154 | -4/Warlord | Identified Vortex Chain Reactor 16165 | -4/Warlord | Found Prototype Hackware 16169 | -4/Warlord | Found Prototype Processor 16169 | -4/Warlord | Identified Exp. Core Analyzer 16175 | -4/Warlord | Found Prototype Device 16175 | -4/Warlord | Identified Exp. Focal Shield 16276 | -4/Warlord | Spotted B-90 Cyclops 16336 | -4/Warlord | Spotted B-90 Cyclops 16361 | -4/Warlord | Spotted B-90 Cyclops 16369 | -4/Warlord | Spotted B-86 Titan 16377 | -4/Warlord | Found Prototype Ballistic Cannon 16377 | -4/Warlord | Identified Hvy. Autocannon 16430 | -4/Warlord | Spotted Executioner 16447 | -4/Warlord | Warlord forces counterattacked 16459 | -4/Warlord | Spotted Striker 16461 | -4/Warlord | Build established: Gunner 16461 | -4/Warlord | Spotted B-86 Titan 16461 | -4/Warlord | Spotted B-90 Cyclops 16489 | -4/Warlord | Found Prototype Device 16489 | -4/Warlord | Identified Adv. Kinecellerator 16574 | -4/Warlord | Opened side exit 16591 | -4/Warlord | Discovered new exit (range 10) 16602 | -4/Warlord | Entered Proximity Caves 16785 | -3/Proximity Caves | Identified Vortex Catalyst Activator 16837 | -3/Proximity Caves | Attracted the attention of an 0b10 checkpoint 17160 | -3/Proximity Caves | Discovered new exit (range 8) 17175 | -3/Proximity Caves | Entered Research 17175 | -3/Research | Evolved 2 slots: Utility x2 17375 | -3/Research | Revision forces began assault on 0b10 17402 | -3/Research | Identified Ghost Barrier 17447 | -3/Research | Met up with Revision 17++ 17545 | -3/Research | Discovered new exit (range 7) 17689 | -3/Research | Build established: Hacker-Gunner 17875 | -3/Research | Research terminal network offline 17980 | -3/Research | Entered another Research area 17980 | -2/Research | Warlord forces began assault on 0b10 17980 | -2/Research | Evolved 2 slots: Propulsion x1, Utility x1 17981 | -2/Research | Identified exit to Access 18090 | -2/Research | Research machine network offline 18090 | -2/Research | Met up with Warlord 18352 | -2/Research | Build established: Scavenger-Tank 18402 | -2/Research | Borebot progress halted 18411 | -2/Research | Found Prototype Processor 18411 | -2/Research | Identified Exp. Targeting Computer 18422 | -2/Research | Entered Access 18422 | -1/Access | Evolved 2 slots: Utility x2 18607 | -1/Access | Identified exit to Command 18634 | -1/Access | Spotted B-99 Colossus 18710 | -1/Access | Destroyed B-99 Colossus 18734 | -1/Access | Lost 8 parts (5u3w) 18956 | -1/Access | Destroyed 12 combat bots 19073 | -1/Access | Lost 4 parts (3u1w) 19080 | -1/Access | Found Prototype Processor 19080 | -1/Access | Identified Exp. Signal Interpreter 19281 | -1/Access | Entered Command 19327 | -1/Command | Build established: Scavenger-Gunner 19579 | -1/Command | Destroyed 7 combat bots 19639 | -1/Command | Lost 3 parts (1n2u) 19831 | -1/Command | Found Antimissile System 19834 | -1/Command | Found Antimissile System 20293 | -1/Command | Incoming investigation squad redirected 20328 | -1/Command | First assault squad dispatched 20422 | -1/Command | Destroyed 9 combat bots 20485 | -1/Command | Lost 13 parts (1p6n4u2w) 20550 | -1/Command | Incoming investigation squad redirected 20556 | -1/Command | Found Quantum Capacitor 21098 | -1/Command | Incoming assault squad redirected 21203 | -1/Command | Disengaged cave seal 21203 | -1/Command | Derelicts emerged from the dark tunnel 21203 | -1/Command | Welcomed Warlord to Command 21347 | -1/Command | Incoming assault squad redirected 21415 | -1/Command | Warlord commented on Warlord statues 21423 | -1/Command | Spotted M Guard 21423 | -1/Command | Spotted M Guard 21423 | -1/Command | Spotted Combat Programmer 21424 | -1/Command | Spotted Combat Programmer 21438 | -1/Command | Core integrity fell below 50% 21465 | -1/Command | Destroyed M Guard 21478 | -1/Command | Destroyed Combat Programmer 21480 | -1/Command | All MAIN.C guards destroyed 21504 | -1/Command | Lost 17 parts (3p3n7u4w) 21505 | -1/Command | Found Prototype Device 21505 | -1/Command | Identified AEGIS Remote Shield 21613 | -1/Command | Incoming assault squad redirected 21796 | -1/Command | Build established: Mutant 21827 | -1/Command | Incoming assault squad redirected 21927 | -1/Command | Incoming assault squad redirected 22097 | -1/Command | Build established: Scavenger-Mutant 22109 | -1/Command | Incoming assault squad redirected 22229 | -1/Command | Met MAIN.C 22230 | -1/Command | Hacked MAIN.C using A7's code 22282 | -1/Command | MAIN.C activated Command garrisons 22283 | -1/Command | 0b10 Conduit disabled 22310 | -1/Command | System corruption reached 10% 22326 | -1/Command | Warlord destroyed during the assault 22365 | -1/Command | Core integrity fell below 20% 22371 | -1/Command | Destroyed by S-43 Plague with Heavy Machine Gun Last Messages --------------- 22357_ P-80 Master resets G-73 Enforcer, system corruption cleaned. 22358_ Linear Accelerator destroyed. 22359_ MAIN.C reaction time slowed by virus. 22359_ Dropped Hcp. Storage Unit. 22361_ Acquired 5 matter. 22362_ Slammed into P-80 Master. 22363_ MAIN.C reaction time slowed by virus. 22364_ Acquired 15 matter. 22364_ Knocked back. 22365_ P-80 Master resets B-74 Champion, system corruption cleaned. 22365_ P-80 Master resets L-61 Swordsman, system corruption cleaned. 22365_ Acquired 2 matter. 22366_ Acquired 8 matter. 22366_ C-30 ARC bursts open, deploying its payload. 22366_ L-61 Swordsman unfolds itself. 22366_ G-73 Enforcer unfolds itself. 22366_ Acquired 6 matter. 22369_ Slammed into L-61 Swordsman. 22370_ Biometal Heavy Treads destroyed. 22371_ Slammed into L-61 Swordsman. Map ----- +----------------------------------------------------+ | ????????????#?#?#??????# ????????????????????? | | ????????????#?#?#??????######????????????????????? | | ????????????#?#?#????????????????????????????????? | | ????????????#?#?#????????????????????????????????? | | ????????????#?#?#????????????????????????????????? | | ????????????#?#?#????????????????????????????????? | | ????????????#?#?#????????????????????????????????? | | ????????????#?#?#????????????????????????????????? | | ????????????#?#?#????????????????????????????????? | | ????????????#?#?#?????????????? #??????????????? | | ????????????#?#?#?????????????? #??????????????? | | ????####????#?#?#?????????????? #??????????????? | | ???????#????#?#?#?????????????? #??????????????? | | ######?#????#?#?#?????????????# #??????????????? | | #####################????# #??????????????? | | #?#???????????????#?#????# #??????????????? | | #######################??# #??????????????? | | ]!]=%=] % % #??# #??????????????? | | % *!=/*% !%[% #??# #??????????????? | | !=* % "p% #??# #??????????????? | | % ###########"####### #??# ???????????????? | | ? #?#???????###?????# #??# ???????###??????? | | ??? ################### s #### ######### #####?## | | ????"#?#????#?#?#??????# cgT# # # # #?# | | ????"#?#????#?#?#??????# gs## g W### # #% ### | | ???????????????????????#x@gx gg x g | | ???????????????????????#l g s h% | | ???????????????????????# slg g b | | ???????????????????????# bm% g [ | | ???????????????????????# h % % !lb b % | | ???????????????????????# # g W ## | | ???????????????????????###### % % # # ## ###% | | ??????????????????????????# gs # ##########?## | | ????????????????????????# ### d ## # ##???? | | ????????????????????????####??#x s### # ###????? | | ??????????????????????????????# g #?#######??????? | | ??????????????????????????????# #??????????????? | | ??????????????????????????????? g#??????????????? | | ??????????????????????????????? #??????????????? | | ??????????????????????????????? #??????????????? | | ??????????????????????????????? #??????????????? | | ???????????????????????????????? #??????????????? | | ???????????????????????????????? ???????????????? | | ???????????????????????????????? ???????????????? | | ???????????????????????????????? ???????????????? | | ?????????????????????????????????????????????????? | | ?????????????????????????????????????????????????? | | ?????????????????????????????????????????????????? | | ?????????????????????????????????????????????????? | | ?????????????????????????????????????????????????? | +----------------------------------------------------+ Best States ------------- Heat Dissipation 136 Energy Generation 55 Energy Capacity 700 Matter Stores 300 Matter Capacity 300 Sight Range 20 Robot Scan Range 16 Terrain Scan Range 24 Terrain Scan Density 10 Jamming Range 14 Power Amplification 20 Additional Mass Support 9 Base Temperature (-) 200 Corruption Block 15 Armor Coverage 600 Resistance: TH 15 Resistance: EM 20 Power Shielding 66 Point Defense Rating 240 Evasion (%) 62 Targeting Accuracy 20 Melee Accuracy 6 Target Analysis 8 Core Analysis 8 Recoil Reduction 4 Kinecelleration 50 Offensive Hacking 20 Defensive Hacking 20 Item Schematics ----------------- Adv. Assault Cannon | -7/Zion | Archive Spk. Medium Treads | -7/Zion | Archive Enh. Optical Array | -7/Zion | Archive Recalibrator | -7/Zion | Archive EM Disruption Field | -7/Zion | Archive Imp. Titanium Leg | -7/Zion | Archive Imp. Transmission Jammer | -7/Zion | Archive Proton Missile Launcher | -7/Zion | Archive Imp. Target Analyzer | -7/Zion | Archive Gauss Rifle | -7/Zion | Archive Xenon Bombardment Thruster | -7/Zion | Archive Adv. System Restoration Module | -7/Zion | Archive Battle Cannon | -7/Zion | Free Flamer | -7/Zion | Free Ripper | -7/Zion | Free Combat Drone Bay | -6/Data Miner | Free Lgt. Regenerative Plating | -6/Data Miner | Free Cld. Gravmag System | -6/Data Miner | Free Enh. Force Rifle | -6/Data Miner | Free Imp. Thermal Defense Suite | -6/Data Miner | Free Adv. Surge Thruster | -6/Data Miner | Free Adv. Focal Shield | -6/Data Miner | Free Force Lance | -6/Data Miner | Free Adv. Medium Treads | -6/Data Miner | Free Hvy. Siege Treads | -4/Factory | Hacked Enh. Quantum Rifle | -4/Factory | Hacked Centrium Medium Armor Plating | -3/Research | Scanalyzed Adv. Force Field | -3/Research | Scanalyzed Robot Schematics ------------------ B-48 Gladiator | -7/Zion | Archive B-36 Bruiser | -7/Zion | Archive H-88 Terminator | -7/Zion | Archive L-41 Fighter | -6/Data Miner | Free R-10 Processor | -6/Data Miner | Free S-27 Virus | -6/Data Miner | Free A-15 Conveyor | -6/Data Miner | Free E-15 Imp | -6/Data Miner | Free M-30 Cleanser | -6/Data Miner | Free Fabricated ------------ Adv. System Restoration Module | x2 | -6/Factory Linear Gravjet | x2 | -5/Factory | Preloaded Alien Tech Used ----------------- None Achievements -------------- Poison In The Code Challenges ------------ None Game ------ Seed EnergySupercompositePod Manual? 0 Play Time 04:36:16 Cumulative 264.0 hours Start 2022.11.11 @ 11:14:34 End 2022.11.11 @ 17:55:24 Sessions 1 Manual Loads 0 Difficulty Rogue Special Mode None Game No. 179 Rogue 156 Adventurer 6 Explorer 17 Win Type - Total 20 Types 13/0/3/1/0/1/1/1/0 Lore% 94 Gallery% 92 Achievement% 73 Wizard Run 0 Options --------- ASCII 0 Keyboard 0 Movement Numpad Keybinds 0 Fullscreen 1 Font 12/Fuzzy Map View 83x54 Tactical HUD 1 Map Filters NONE Filters NONE Steam 1 RUN: e250e1d3-039e-4b29-b71c-dc004987ae8d